[Event "Titled Tuesday Blitz April 05 Late 2022"]
[White "Pavlidou, Ekaterini"]
[Black "Potapova, Margarita"]
[WhiteFideId "4213262"]
[BlackFideId "14126869"]
[WhiteElo "2374"]
[BlackElo "2596"]
[Result "0-1"]
[Round "06"]
[TimeControl "180+1"]
[Date "2022.04.06"]
[WhiteClock "0:02:08"]
[BlackClock "0:02:05"]

1. d4 {[%clk 0:03:00]}  Nf6 {[%clk 0:02:58]} 2. c4 {[%clk 0:03:01]}  e6 {[%clk 0:02:58]} 3. Nc3 {[%clk 0:03:01]}  Bb4 {[%clk 0:02:58]} 4. e3 {[%clk 0:02:59]}  O-O {[%clk 0:02:57]} 5. Bd3 {[%clk 0:02:58]}  d5 {[%clk 0:02:55]} 6. Ne2 {[%clk 0:02:59]}  c5 {[%clk 0:02:50]} 7. a3 {[%clk 0:02:56]}  Bxc3+ {[%clk 0:02:42]} 8. Nxc3 {[%clk 0:02:56]}  cxd4 {[%clk 0:02:34]} 9. exd4 {[%clk 0:02:55]}  dxc4 {[%clk 0:02:35]} 10. Bxc4 {[%clk 0:02:54]}  Nc6 {[%clk 0:02:35]} 11. Be3 {[%clk 0:02:53]}  b6 {[%clk 0:02:35]} 12. O-O {[%clk 0:02:52]}  Bb7 {[%clk 0:02:35]} 13. Qf3 {[%clk 0:02:43]}  Na5 {[%clk 0:02:32]} 14. Qe2 {[%clk 0:02:40]}  Nxc4 {[%clk 0:02:31]} 15. Qxc4 {[%clk 0:02:39]}  Rc8 {[%clk 0:02:31]} 16. Qe2 {[%clk 0:02:39]}  Nd5 {[%clk 0:02:25]} 17. Nxd5 {[%clk 0:02:29]}  Bxd5 {[%clk 0:02:26]} 18. Qd2 {[%clk 0:02:27]}  Qf6 {[%clk 0:02:23]} 19. Bg5 {[%clk 0:02:25]}  Qg6 {[%clk 0:02:22]} 20. f3 {[%clk 0:02:24]}  h6 {[%clk 0:02:20]} 21. h4 {[%clk 0:02:12]}  hxg5 {[%clk 0:02:18]} 22. hxg5 {[%clk 0:02:13]}  Rc2 {[%clk 0:02:17]} 23. Qf4 {[%clk 0:02:12]}  f6 {[%clk 0:02:10]} 24. Rf2 {[%clk 0:02:09]}  Rxf2 {[%clk 0:02:07]} 25. Kxf2 {[%clk 0:02:09]}  fxg5 {[%clk 0:02:07]} 26. Qc7 {[%clk 0:02:08]}  g4 {[%clk 0:02:05]} 0-1


[Site "https://www.chess.com"]

[Event "Titled Tuesday Blitz April 05 Late 2022"]
[White "Piesik, Piotr"]
[Black "Ezat, Mohamed"]
[WhiteFideId "1136194"]
[BlackFideId "10600906"]
[WhiteElo "2634"]
[BlackElo "2593"]
[Result "1-0"]
[Round "06"]
[TimeControl "180+1"]
[Date "2022.04.06"]
[WhiteClock "0:00:41"]
[BlackClock "0:00:09"]

1. Nf3 {[%clk 0:02:56]}  Nf6 {[%clk 0:02:36]} 2. g3 {[%clk 0:02:56]}  g6 {[%clk 0:02:34]} 3. Bg2 {[%clk 0:02:56]}  Bg7 {[%clk 0:02:35]} 4. O-O {[%clk 0:02:57]}  O-O {[%clk 0:02:35]} 5. d4 {[%clk 0:02:57]}  d6 {[%clk 0:02:35]} 6. Nbd2 {[%clk 0:02:57]}  Nc6 {[%clk 0:02:36]} 7. e4 {[%clk 0:02:57]}  e5 {[%clk 0:02:36]} 8. dxe5 {[%clk 0:02:57]}  Nxe5 {[%clk 0:02:36]} 9. Nxe5 {[%clk 0:02:57]}  dxe5 {[%clk 0:02:37]} 10. Qe2 {[%clk 0:02:58]}  Qe7 {[%clk 0:02:36]} 11. Nc4 {[%clk 0:02:58]}  b6 {[%clk 0:02:34]} 12. Be3 {[%clk 0:02:54]}  Ba6 {[%clk 0:02:33]} 13. Rfd1 {[%clk 0:02:53]}  Rfd8 {[%clk 0:02:32]} 14. f3 {[%clk 0:02:50]}  Ne8 {[%clk 0:02:27]} 15. b3 {[%clk 0:02:29]}  Nd6 {[%clk 0:02:26]} 16. Bf1 {[%clk 0:02:24]}  Nxc4 {[%clk 0:02:26]} 17. bxc4 {[%clk 0:02:24]}  Qa3 {[%clk 0:02:24]} 18. Rd3 {[%clk 0:02:12]}  Qb2 {[%clk 0:02:16]} 19. Rad1 {[%clk 0:02:11]}  Bf6 {[%clk 0:01:47]} 20. Rd7 {[%clk 0:02:05]}  Qxa2 {[%clk 0:01:36]} 21. Rxc7 {[%clk 0:02:04]}  Rxd1 {[%clk 0:01:18]} 22. Qxd1 {[%clk 0:02:05]}  Rd8 {[%clk 0:01:16]} 23. Rd7 {[%clk 0:02:05]}  Rxd7 {[%clk 0:01:00]} 24. Qxd7 {[%clk 0:02:06]}  Kg7 {[%clk 0:01:00]} 25. Qxa7 {[%clk 0:01:50]}  Bxc4 {[%clk 0:00:45]} 26. Qxa2 {[%clk 0:01:49]}  Bxa2 {[%clk 0:00:46]} 27. Bxb6 {[%clk 0:01:50]}  Be7 {[%clk 0:00:45]} 28. Kf2 {[%clk 0:01:45]}  f5 {[%clk 0:00:43]} 29. Bd3 {[%clk 0:01:39]}  Kf6 {[%clk 0:00:42]} 30. Ke3 {[%clk 0:01:38]}  Bb4 {[%clk 0:00:41]} 31. Bd8+ {[%clk 0:01:30]}  Ke6 {[%clk 0:00:41]} 32. Bb6 {[%clk 0:01:25]}  Ba3 {[%clk 0:00:33]} 33. Kd2 {[%clk 0:01:21]}  Bb4+ {[%clk 0:00:32]} 34. c3 {[%clk 0:01:21]}  Ba3 {[%clk 0:00:30]} 35. Kc2 {[%clk 0:01:19]}  fxe4 {[%clk 0:00:25]} 36. fxe4 {[%clk 0:01:14]}  Kd6 {[%clk 0:00:25]} 37. Bb5 {[%clk 0:01:14]}  Be6 {[%clk 0:00:23]} 38. Kd3 {[%clk 0:01:09]}  Bc5 {[%clk 0:00:20]} 39. Bxc5+ {[%clk 0:00:56]}  Kxc5 {[%clk 0:00:20]} 40. Ba6 {[%clk 0:00:53]}  Bh3 {[%clk 0:00:20]} 41. Ke3 {[%clk 0:00:53]}  h6 {[%clk 0:00:19]} 42. Bd3 {[%clk 0:00:53]}  Be6 {[%clk 0:00:20]} 43. h4 {[%clk 0:00:50]}  Bf7 {[%clk 0:00:20]} 44. Kd2 {[%clk 0:00:46]}  Be6 {[%clk 0:00:18]} 45. Bc2 {[%clk 0:00:44]}  g5 {[%clk 0:00:19]} 46. hxg5 {[%clk 0:00:43]}  hxg5 {[%clk 0:00:18]} 47. Ba4 {[%clk 0:00:44]}  Bc4 {[%clk 0:00:18]} 48. Bd7 {[%clk 0:00:43]}  Ba6 {[%clk 0:00:18]} 49. Be6 {[%clk 0:00:42]}  Bf1 {[%clk 0:00:17]} 50. Ke3 {[%clk 0:00:42]}  Bb5 {[%clk 0:00:16]} 51. Kf3 {[%clk 0:00:42]}  Kd6 {[%clk 0:00:11]} 52. Bf5 {[%clk 0:00:41]}  Kc5 {[%clk 0:00:08]} 53. Kg4 {[%clk 0:00:40]}  Kc4 {[%clk 0:00:09]} 54. Kxg5 {[%clk 0:00:40]}  Kxc3 {[%clk 0:00:09]} 55. Kf6 {[%clk 0:00:40]}  Kd4 {[%clk 0:00:09]} 56. g4 {[%clk 0:00:41]} 1-0


[Site "https://www.chess.com"]

[Event "Titled Tuesday Blitz April 05 Late 2022"]
[White "Polok, Kacper"]
[Black "Brizzi, Milagros Tatiana"]
[WhiteFideId "1137158"]
[BlackFideId "128350"]
[WhiteElo "2224"]
[BlackElo "1844"]
[Result "1-0"]
[Round "06"]
[TimeControl "180+1"]
[Date "2022.04.06"]
[WhiteClock "0:01:36"]
[BlackClock "0:00:05"]

1. f4 {[%clk 0:02:59]}  c6 {[%clk 0:02:59]} 2. Nf3 {[%clk 0:02:57]}  d5 {[%clk 0:02:59]} 3. e3 {[%clk 0:02:57]}  Nf6 {[%clk 0:02:58]} 4. d4 {[%clk 0:02:58]}  Bg4 {[%clk 0:02:56]} 5. Bd3 {[%clk 0:02:58]}  e6 {[%clk 0:02:54]} 6. c3 {[%clk 0:02:58]}  Nbd7 {[%clk 0:02:53]} 7. O-O {[%clk 0:02:57]}  Be7 {[%clk 0:02:52]} 8. Nbd2 {[%clk 0:02:56]}  O-O {[%clk 0:02:51]} 9. h3 {[%clk 0:02:54]}  Bxf3 {[%clk 0:02:45]} 10. Qxf3 {[%clk 0:02:51]}  c5 {[%clk 0:02:45]} 11. b3 {[%clk 0:02:44]}  Rc8 {[%clk 0:02:44]} 12. Bb2 {[%clk 0:02:44]}  cxd4 {[%clk 0:02:39]} 13. exd4 {[%clk 0:02:42]}  a6 {[%clk 0:02:36]} 14. Rac1 {[%clk 0:02:40]}  b5 {[%clk 0:02:34]} 15. Qe3 {[%clk 0:02:38]}  Nb6 {[%clk 0:02:33]} 16. Nf3 {[%clk 0:02:37]}  Rc7 {[%clk 0:02:18]} 17. Ne5 {[%clk 0:02:34]}  Qb8 {[%clk 0:02:07]} 18. Kh1 {[%clk 0:02:33]}  Nbd7 {[%clk 0:02:04]} 19. g4 {[%clk 0:02:33]}  Rfc8 {[%clk 0:01:55]} 20. g5 {[%clk 0:02:32]}  Ne8 {[%clk 0:01:51]} 21. f5 {[%clk 0:02:27]}  Nxe5 {[%clk 0:01:47]} 22. dxe5 {[%clk 0:02:25]}  Bc5 {[%clk 0:01:39]} 23. Qf4 {[%clk 0:02:24]}  Qb7 {[%clk 0:01:13]} 24. g6 {[%clk 0:02:16]}  hxg6 {[%clk 0:01:00]} 25. fxg6 {[%clk 0:02:14]}  a5 {[%clk 0:00:41]} 26. Qh4 {[%clk 0:02:10]}  fxg6 {[%clk 0:00:41]} 27. Bxg6 {[%clk 0:02:09]}  d4+ {[%clk 0:00:39]} 28. Kh2 {[%clk 0:02:09]}  Nf6 {[%clk 0:00:31]} 29. cxd4 {[%clk 0:02:04]}  Bb4 {[%clk 0:00:19]} 30. exf6 {[%clk 0:02:04]}  gxf6 {[%clk 0:00:16]} 31. Rg1 {[%clk 0:02:04]}  Rg7 {[%clk 0:00:13]} 32. Qxf6 {[%clk 0:01:51]}  Bd6+ {[%clk 0:00:13]} 33. Rg3 {[%clk 0:01:38]}  Bxg3+ {[%clk 0:00:11]} 34. Kxg3 {[%clk 0:01:38]}  Rxc1 {[%clk 0:00:10]} 35. Bxc1 {[%clk 0:01:38]}  Qc7+ {[%clk 0:00:10]} 36. Bf4 {[%clk 0:01:38]}  Qc3+ {[%clk 0:00:10]} 37. Kg4 {[%clk 0:01:36]}  Qe1 {[%clk 0:00:05]} 38. Qd8# {[%clk 0:01:36]} 1-0


[Site "https://www.chess.com"]

[Event "Titled Tuesday Blitz April 05 Late 2022"]
[White "Prohorov, Olexandr"]
[Black "Andrews, Todd"]
[WhiteFideId "14105578"]
[BlackFideId "2012456"]
[WhiteElo "1993"]
[BlackElo "2301"]
[Result "1-0"]
[Round "06"]
[TimeControl "180+1"]
[Date "2022.04.06"]
[WhiteClock "0:00:13"]
[BlackClock "0:00:02"]

1. e4 {[%clk 0:03:00]}  e6 {[%clk 0:02:58]} 2. d4 {[%clk 0:02:57]}  d5 {[%clk 0:02:59]} 3. Nc3 {[%clk 0:02:58]}  Bb4 {[%clk 0:02:59]} 4. Ne2 {[%clk 0:02:57]}  dxe4 {[%clk 0:02:58]} 5. a3 {[%clk 0:02:56]}  Bxc3+ {[%clk 0:02:58]} 6. Nxc3 {[%clk 0:02:55]}  Nc6 {[%clk 0:02:58]} 7. Bb5 {[%clk 0:02:39]}  Ne7 {[%clk 0:02:54]} 8. Nxe4 {[%clk 0:02:30]}  a6 {[%clk 0:02:54]} 9. Bxc6+ {[%clk 0:02:24]}  Nxc6 {[%clk 0:02:55]} 10. c3 {[%clk 0:02:18]}  O-O {[%clk 0:02:46]} 11. O-O {[%clk 0:02:17]}  b6 {[%clk 0:02:45]} 12. Qf3 {[%clk 0:02:13]}  Qd5 {[%clk 0:02:33]} 13. Bf4 {[%clk 0:02:08]}  Bb7 {[%clk 0:01:56]} 14. Bxc7 {[%clk 0:02:07]}  Na5 {[%clk 0:01:56]} 15. Rfe1 {[%clk 0:01:59]}  f5 {[%clk 0:01:48]} 16. Nd2 {[%clk 0:01:55]}  Qd7 {[%clk 0:01:43]} 17. Qf4 {[%clk 0:01:45]}  Rac8 {[%clk 0:01:36]} 18. Be5 {[%clk 0:01:43]}  Qd5 {[%clk 0:01:33]} 19. Nf3 {[%clk 0:01:34]}  h6 {[%clk 0:01:30]} 20. h4 {[%clk 0:01:32]}  Nc4 {[%clk 0:01:26]} 21. Re2 {[%clk 0:01:27]}  b5 {[%clk 0:01:19]} 22. Qg3 {[%clk 0:01:18]}  Rf7 {[%clk 0:01:18]} 23. h5 {[%clk 0:01:15]}  a5 {[%clk 0:01:17]} 24. Bf4 {[%clk 0:01:11]}  b4 {[%clk 0:01:06]} 25. axb4 {[%clk 0:01:05]}  axb4 {[%clk 0:01:06]} 26. b3 {[%clk 0:01:01]}  bxc3 {[%clk 0:00:59]} 27. bxc4 {[%clk 0:01:00]}  Qxc4 {[%clk 0:00:44]} 28. Rae1 {[%clk 0:01:01]}  Bxf3 {[%clk 0:00:17]} 29. Qxf3 {[%clk 0:00:52]}  Qxd4 {[%clk 0:00:18]} 30. Rxe6 {[%clk 0:00:48]}  c2 {[%clk 0:00:16]} 31. Bc1 {[%clk 0:00:41]}  Kh7 {[%clk 0:00:14]} 32. R6e2 {[%clk 0:00:32]}  Qd1 {[%clk 0:00:10]} 33. Kh2 {[%clk 0:00:30]}  Rd8 {[%clk 0:00:08]} 34. Qg3 {[%clk 0:00:27]}  Rf6 {[%clk 0:00:06]} 35. Bb2 {[%clk 0:00:22]}  Rdd6 {[%clk 0:00:02]} 36. Bxf6 {[%clk 0:00:19]}  Rxf6 {[%clk 0:00:02]} 37. Qc3 {[%clk 0:00:13]} 1-0


[Site "https://www.chess.com"]

[Event "Titled Tuesday Blitz April 05 Late 2022"]
[White "Quintiliano Pinto, Renato R."]
[Black "Mkrtchyan, Mariam"]
[WhiteFideId "2117568"]
[BlackFideId "13310828"]
[WhiteElo "2439"]
[BlackElo "1984"]
[Result "0-1"]
[Round "06"]
[TimeControl "180+1"]
[Date "2022.04.05"]
[WhiteClock "0:00:01"]
[BlackClock "0:00:17"]

1. e4 {[%clk 0:03:00]}  c6 {[%clk 0:03:00]} 2. d4 {[%clk 0:03:00]}  d5 {[%clk 0:02:58]} 3. Nc3 {[%clk 0:02:59]}  dxe4 {[%clk 0:02:58]} 4. Nxe4 {[%clk 0:03:00]}  Bf5 {[%clk 0:02:47]} 5. Ng3 {[%clk 0:03:00]}  Bg6 {[%clk 0:02:47]} 6. h4 {[%clk 0:03:00]}  h6 {[%clk 0:02:44]} 7. Nf3 {[%clk 0:03:00]}  Nd7 {[%clk 0:02:41]} 8. h5 {[%clk 0:03:00]}  Bh7 {[%clk 0:02:39]} 9. Bd3 {[%clk 0:03:01]}  Bxd3 {[%clk 0:02:38]} 10. Qxd3 {[%clk 0:03:02]}  e6 {[%clk 0:02:35]} 11. Bd2 {[%clk 0:03:01]}  Ngf6 {[%clk 0:02:33]} 12. O-O-O {[%clk 0:03:02]}  Be7 {[%clk 0:02:29]} 13. Kb1 {[%clk 0:02:57]}  a5 {[%clk 0:02:26]} 14. Ne4 {[%clk 0:02:56]}  O-O {[%clk 0:02:22]} 15. c4 {[%clk 0:02:44]}  b5 {[%clk 0:02:12]} 16. c5 {[%clk 0:02:44]}  a4 {[%clk 0:02:05]} 17. Qe2 {[%clk 0:02:27]}  a3 {[%clk 0:01:58]} 18. b3 {[%clk 0:02:24]}  Re8 {[%clk 0:01:57]} 19. g4 {[%clk 0:02:22]}  Nxe4 {[%clk 0:01:47]} 20. Qxe4 {[%clk 0:02:22]}  Nf6 {[%clk 0:01:26]} 21. Qe2 {[%clk 0:02:18]}  Qd5 {[%clk 0:01:20]} 22. Ne5 {[%clk 0:02:12]}  Ne4 {[%clk 0:01:09]} 23. Be1 {[%clk 0:01:55]}  Ng3 {[%clk 0:01:04]} 24. fxg3 {[%clk 0:01:49]}  Qxh1 {[%clk 0:01:03]} 25. Nf3 {[%clk 0:01:33]}  Bf6 {[%clk 0:00:54]} 26. Bf2 {[%clk 0:00:49]}  Qh3 {[%clk 0:00:54]} 27. Nd2 {[%clk 0:00:41]}  Qg2 {[%clk 0:00:53]} 28. Ne4 {[%clk 0:00:41]}  Be7 {[%clk 0:00:47]} 29. Rg1 {[%clk 0:00:40]}  Qh3 {[%clk 0:00:40]} 30. Nd2 {[%clk 0:00:33]}  Bg5 {[%clk 0:00:38]} 31. Ne4 {[%clk 0:00:26]}  f5 {[%clk 0:00:37]} 32. Nd6 {[%clk 0:00:25]}  Re7 {[%clk 0:00:32]} 33. gxf5 {[%clk 0:00:23]}  exf5 {[%clk 0:00:31]} 34. Qf3 {[%clk 0:00:24]}  Qg4 {[%clk 0:00:27]} 35. Qxc6 {[%clk 0:00:19]}  Rf8 {[%clk 0:00:22]} 36. Qd5+ {[%clk 0:00:20]}  Kh7 {[%clk 0:00:20]} 37. Nxb5 {[%clk 0:00:03]}  Qe2 {[%clk 0:00:20]} 38. Nxa3 {[%clk 0:00:02]}  Qxf2 {[%clk 0:00:19]} 39. Rd1 {[%clk 0:00:03]}  Re2 {[%clk 0:00:19]} 40. Nc4 {[%clk 0:00:02]}  Rxa2 {[%clk 0:00:18]} 41. Qf3 {[%clk 0:00:01]}  Qc2# {[%clk 0:00:17]} 0-1


[Site "https://www.chess.com"]

[Event "Titled Tuesday Blitz April 05 Late 2022"]
[White "Rasulov, Vugar"]
[Black "Gledura, Benjamin"]
[WhiteFideId "13402390"]
[BlackFideId "712779"]
[WhiteElo "2560"]
[BlackElo "2326"]
[Result "0-1"]
[Round "06"]
[TimeControl "180+1"]
[Date "2022.04.05"]
[WhiteClock "0:00:18"]
[BlackClock "0:00:45"]

1. d4 {[%clk 0:03:00]}  Nf6 {[%clk 0:02:59]} 2. c4 {[%clk 0:03:01]}  d6 {[%clk 0:02:59]} 3. Nf3 {[%clk 0:03:00]}  Nbd7 {[%clk 0:03:00]} 4. Nc3 {[%clk 0:02:59]}  e5 {[%clk 0:03:01]} 5. e4 {[%clk 0:03:00]}  Be7 {[%clk 0:02:54]} 6. g3 {[%clk 0:03:00]}  O-O {[%clk 0:02:54]} 7. Bg2 {[%clk 0:03:00]}  c6 {[%clk 0:02:49]} 8. O-O {[%clk 0:03:00]}  a6 {[%clk 0:02:48]} 9. d5 {[%clk 0:02:59]}  Nc5 {[%clk 0:02:43]} 10. Ne1 {[%clk 0:02:55]}  a5 {[%clk 0:02:38]} 11. Be3 {[%clk 0:02:55]}  Bg4 {[%clk 0:02:27]} 12. Qc2 {[%clk 0:02:47]}  Na6 {[%clk 0:02:20]} 13. h3 {[%clk 0:02:43]}  Bd7 {[%clk 0:02:19]} 14. Qd2 {[%clk 0:02:42]}  cxd5 {[%clk 0:02:18]} 15. exd5 {[%clk 0:02:36]}  Qc8 {[%clk 0:02:16]} 16. Kh2 {[%clk 0:02:32]}  Qxc4 {[%clk 0:02:13]} 17. Rc1 {[%clk 0:02:32]}  Qc8 {[%clk 0:02:10]} 18. f4 {[%clk 0:02:28]}  exf4 {[%clk 0:02:08]} 19. Bxf4 {[%clk 0:02:29]}  Nc5 {[%clk 0:02:07]} 20. Nd3 {[%clk 0:02:22]}  b6 {[%clk 0:02:04]} 21. Nxc5 {[%clk 0:02:15]}  bxc5 {[%clk 0:02:03]} 22. Rce1 {[%clk 0:02:15]}  Qd8 {[%clk 0:01:57]} 23. Rxe7 {[%clk 0:01:53]}  Qxe7 {[%clk 0:01:56]} 24. Bg5 {[%clk 0:01:54]}  Qe5 {[%clk 0:01:40]} 25. Bxf6 {[%clk 0:01:35]}  gxf6 {[%clk 0:01:41]} 26. Re1 {[%clk 0:01:25]}  Qg5 {[%clk 0:01:40]} 27. Qf2 {[%clk 0:01:24]}  f5 {[%clk 0:01:39]} 28. h4 {[%clk 0:01:18]}  Qf6 {[%clk 0:01:36]} 29. Ne4 {[%clk 0:01:17]}  Qg6 {[%clk 0:01:35]} 30. Nd2 {[%clk 0:01:06]}  Rae8 {[%clk 0:01:34]} 31. Rc1 {[%clk 0:00:54]}  Kh8 {[%clk 0:01:29]} 32. Bf3 {[%clk 0:00:52]}  Rg8 {[%clk 0:01:28]} 33. Rc4 {[%clk 0:00:47]}  Qf6 {[%clk 0:01:20]} 34. Nb3 {[%clk 0:00:36]}  a4 {[%clk 0:01:18]} 35. Na5 {[%clk 0:00:36]}  Rb8 {[%clk 0:01:07]} 36. b3 {[%clk 0:00:35]}  axb3 {[%clk 0:01:07]} 37. axb3 {[%clk 0:00:36]}  Rb5 {[%clk 0:01:03]} 38. Qd2 {[%clk 0:00:25]}  Qg7 {[%clk 0:00:48]} 39. g4 {[%clk 0:00:16]}  fxg4 {[%clk 0:00:47]} 40. Bg2 {[%clk 0:00:17]}  g3+ {[%clk 0:00:47]} 41. Kg1 {[%clk 0:00:18]}  Qa1+ {[%clk 0:00:45]} 0-1


[Site "https://www.chess.com"]

[Event "Titled Tuesday Blitz April 05 Late 2022"]
[White "Ronka, Erik"]
[Black "Araujo Filho, Luiz Antonio Coel"]
[WhiteFideId "505080"]
[BlackFideId "2130661"]
[WhiteElo "2264"]
[BlackElo "2274"]
[Result "1-0"]
[Round "06"]
[TimeControl "180+1"]
[Date "2022.04.06"]
[WhiteClock "0:00:08"]
[BlackClock "0:00:05"]

1. e4 {[%clk 0:03:00]}  c6 {[%clk 0:02:53]} 2. Nf3 {[%clk 0:03:00]}  d5 {[%clk 0:02:41]} 3. Nc3 {[%clk 0:03:01]}  dxe4 {[%clk 0:02:41]} 4. Nxe4 {[%clk 0:03:02]}  Nf6 {[%clk 0:02:42]} 5. Qe2 {[%clk 0:03:02]}  e6 {[%clk 0:02:40]} 6. d4 {[%clk 0:03:01]}  Nbd7 {[%clk 0:02:40]} 7. Bd2 {[%clk 0:03:01]}  Nxe4 {[%clk 0:02:38]} 8. Qxe4 {[%clk 0:03:02]}  Nf6 {[%clk 0:02:39]} 9. Qd3 {[%clk 0:02:58]}  Qb6 {[%clk 0:02:37]} 10. O-O-O {[%clk 0:02:57]}  Be7 {[%clk 0:02:35]} 11. Rg1 {[%clk 0:02:31]}  O-O {[%clk 0:02:32]} 12. g4 {[%clk 0:02:32]}  Re8 {[%clk 0:02:29]} 13. g5 {[%clk 0:02:32]}  Nd5 {[%clk 0:02:28]} 14. h4 {[%clk 0:02:29]}  Nb4 {[%clk 0:02:23]} 15. Qb3 {[%clk 0:02:18]}  a5 {[%clk 0:02:21]} 16. a3 {[%clk 0:02:16]}  a4 {[%clk 0:02:18]} 17. Qc4 {[%clk 0:02:09]}  Nd5 {[%clk 0:02:13]} 18. h5 {[%clk 0:02:07]}  Qc7 {[%clk 0:02:08]} 19. g6 {[%clk 0:02:04]}  fxg6 {[%clk 0:02:01]} 20. hxg6 {[%clk 0:02:03]}  h6 {[%clk 0:02:01]} 21. Ne5 {[%clk 0:01:46]}  Bf6 {[%clk 0:01:52]} 22. Nf7 {[%clk 0:01:36]}  b5 {[%clk 0:01:36]} 23. Qd3 {[%clk 0:01:34]}  b4 {[%clk 0:01:27]} 24. axb4 {[%clk 0:01:20]}  Qe7 {[%clk 0:01:19]} 25. Rh1 {[%clk 0:00:32]}  Nxb4 {[%clk 0:00:59]} 26. Qf3 {[%clk 0:00:32]}  a3 {[%clk 0:00:38]} 27. bxa3 {[%clk 0:00:30]}  Nd5 {[%clk 0:00:38]} 28. Bxh6 {[%clk 0:00:18]}  gxh6 {[%clk 0:00:16]} 29. Nxh6+ {[%clk 0:00:17]}  Kg7 {[%clk 0:00:17]} 30. Nf7 {[%clk 0:00:17]}  Qxa3+ {[%clk 0:00:16]} 31. Qxa3 {[%clk 0:00:14]}  Rxa3 {[%clk 0:00:17]} 32. Bd3 {[%clk 0:00:15]}  Nf4 {[%clk 0:00:11]} 33. Be4 {[%clk 0:00:12]}  Bb7 {[%clk 0:00:06]} 34. Nd6 {[%clk 0:00:12]}  Re7 {[%clk 0:00:06]} 35. Rh7+ {[%clk 0:00:11]}  Kg8 {[%clk 0:00:06]} 36. Rxe7 {[%clk 0:00:11]}  Bxe7 {[%clk 0:00:07]} 37. Nxb7 {[%clk 0:00:12]}  Ra7 {[%clk 0:00:05]} 38. Nc5 {[%clk 0:00:11]}  Bxc5 {[%clk 0:00:04]} 39. dxc5 {[%clk 0:00:12]}  Kg7 {[%clk 0:00:05]} 40. Bxc6 {[%clk 0:00:12]}  Kxg6 {[%clk 0:00:04]} 41. Be4+ {[%clk 0:00:12]}  Kf6 {[%clk 0:00:04]} 42. Kb2 {[%clk 0:00:11]}  Rc7 {[%clk 0:00:04]} 43. c6 {[%clk 0:00:11]}  Ke5 {[%clk 0:00:05]} 44. f3 {[%clk 0:00:11]}  Nh3 {[%clk 0:00:04]} 45. Rh1 {[%clk 0:00:10]}  Nf2 {[%clk 0:00:04]} 46. Rh5+ {[%clk 0:00:11]}  Kf4 {[%clk 0:00:04]} 47. Rh6 {[%clk 0:00:11]}  Nxe4 {[%clk 0:00:04]} 48. fxe4 {[%clk 0:00:11]}  Kxe4 {[%clk 0:00:05]} 49. Rxe6+ {[%clk 0:00:11]}  Kd5 {[%clk 0:00:05]} 50. Re3 {[%clk 0:00:09]}  Rxc6 {[%clk 0:00:05]} 51. Rd3+ {[%clk 0:00:10]}  Ke6 {[%clk 0:00:05]} 52. Rc3 {[%clk 0:00:09]}  Rb6+ {[%clk 0:00:05]} 53. Rb3 {[%clk 0:00:09]}  Rxb3+ {[%clk 0:00:04]} 54. Kxb3 {[%clk 0:00:09]}  Kd6 {[%clk 0:00:05]} 55. Kc4 {[%clk 0:00:08]}  Kc6 {[%clk 0:00:05]} 56. c3 {[%clk 0:00:09]}  Kb6 {[%clk 0:00:04]} 57. Kd5 {[%clk 0:00:09]}  Kc7 {[%clk 0:00:05]} 58. Kc5 {[%clk 0:00:09]}  Kb7 {[%clk 0:00:05]} 59. Kd6 {[%clk 0:00:08]}  Kc8 {[%clk 0:00:05]} 60. Kc6 {[%clk 0:00:08]}  Kb8 {[%clk 0:00:05]} 61. c4 {[%clk 0:00:08]}  Kc8 {[%clk 0:00:05]} 62. c5 {[%clk 0:00:08]}  Kd8 {[%clk 0:00:05]} 63. Kb7 {[%clk 0:00:08]} 1-0


[Site "https://www.chess.com"]

[Event "Titled Tuesday Blitz April 05 Late 2022"]
[White "Silvestre, Christian"]
[Black "D`Arruda, Ricardo D."]
[WhiteFideId "30956269"]
[BlackFideId "100692"]
[WhiteElo "2386"]
[BlackElo "2136"]
[Result "1-0"]
[Round "06"]
[TimeControl "180+1"]
[Date "2022.04.06"]
[WhiteClock "0:00:12"]
[BlackClock "0:00:01"]

1. c4 {[%clk 0:03:00]}  e5 {[%clk 0:02:50]} 2. Nc3 {[%clk 0:02:57]}  Nf6 {[%clk 0:02:51]} 3. g3 {[%clk 0:02:53]}  Nc6 {[%clk 0:02:51]} 4. Bg2 {[%clk 0:02:52]}  Bb4 {[%clk 0:02:52]} 5. e4 {[%clk 0:02:50]}  O-O {[%clk 0:02:51]} 6. Nge2 {[%clk 0:02:49]}  d6 {[%clk 0:02:51]} 7. a3 {[%clk 0:02:47]}  Bc5 {[%clk 0:02:50]} 8. O-O {[%clk 0:02:46]}  a5 {[%clk 0:02:46]} 9. h3 {[%clk 0:02:42]}  Be6 {[%clk 0:02:40]} 10. d3 {[%clk 0:02:42]}  Nd4 {[%clk 0:02:39]} 11. Nxd4 {[%clk 0:02:36]}  Bxd4 {[%clk 0:02:39]} 12. Qe1 {[%clk 0:02:24]}  c6 {[%clk 0:02:35]} 13. Be3 {[%clk 0:02:22]}  d5 {[%clk 0:02:18]} 14. cxd5 {[%clk 0:02:02]}  cxd5 {[%clk 0:02:17]} 15. Bg5 {[%clk 0:01:53]}  Bxc3 {[%clk 0:01:56]} 16. Qxc3 {[%clk 0:01:50]}  dxe4 {[%clk 0:01:53]} 17. dxe4 {[%clk 0:01:38]}  h6 {[%clk 0:01:52]} 18. Be3 {[%clk 0:01:33]}  Nd7 {[%clk 0:01:43]} 19. Rfd1 {[%clk 0:01:31]}  Qe7 {[%clk 0:01:43]} 20. Rac1 {[%clk 0:01:22]}  b5 {[%clk 0:01:27]} 21. Qc7 {[%clk 0:01:18]}  Rfb8 {[%clk 0:01:09]} 22. f4 {[%clk 0:01:07]}  exf4 {[%clk 0:01:02]} 23. gxf4 {[%clk 0:01:01]}  g6 {[%clk 0:00:52]} 24. e5 {[%clk 0:00:42]}  Rc8 {[%clk 0:00:41]} 25. Qd6 {[%clk 0:00:37]}  Qh4 {[%clk 0:00:31]} 26. Rxc8+ {[%clk 0:00:30]}  Rxc8 {[%clk 0:00:30]} 27. Qd4 {[%clk 0:00:25]}  Rc4 {[%clk 0:00:20]} 28. Qd2 {[%clk 0:00:21]}  Bxh3 {[%clk 0:00:15]} 29. Bf2 {[%clk 0:00:20]}  Qg4 {[%clk 0:00:14]} 30. Be3 {[%clk 0:00:18]}  Re4 {[%clk 0:00:09]} 31. Rf1 {[%clk 0:00:16]}  Rxe3 {[%clk 0:00:08]} 32. Kh2 {[%clk 0:00:13]}  Qg3+ {[%clk 0:00:06]} 33. Kg1 {[%clk 0:00:12]}  Rd3 {[%clk 0:00:03]} 34. Qf2 {[%clk 0:00:12]}  Qxg2+ {[%clk 0:00:03]} 35. Qxg2 {[%clk 0:00:12]}  Bxg2 {[%clk 0:00:02]} 36. Kxg2 {[%clk 0:00:13]}  Nc5 {[%clk 0:00:02]} 37. Rf2 {[%clk 0:00:12]}  Ne6 {[%clk 0:00:02]} 38. Rc2 {[%clk 0:00:11]}  b4 {[%clk 0:00:02]} 39. Rc8+ {[%clk 0:00:12]}  Kg7 {[%clk 0:00:01]} 40. Kf2 {[%clk 0:00:13]}  b3 {[%clk 0:00:01]} 41. Rb8 {[%clk 0:00:13]}  Nxf4 {[%clk 0:00:01]} 42. e6 {[%clk 0:00:12]} 1-0


[Site "https://www.chess.com"]